[Event "*** SCC Grand Prix: Titled Tuesday Blitz"]
[Site "Chess.com"]
[Date "2020.09.29"]
[Round "7"]
[White "goldenpuppy"]
[Black "angryhorse9"]
[Result "1-0"]
[WhiteElo "2399"]
[BlackElo "2524"]
[TimeControl "180+1"]
[EndTime "11:15:59 PDT"]
[Termination "goldenpuppy won by resignation"]

1. e4 {[%clk 0:03:00.9]} 1... c5 {[%clk 0:03:00]} 2. Nf3 {[%clk 0:02:56.8]} 2...
d6 {[%clk 0:03:00.2]} 3. d4 {[%clk 0:02:55.5]} 3... Nf6 {[%clk 0:02:59.3]} 4.
Nc3 {[%clk 0:02:55.3]} 4... cxd4 {[%clk 0:02:59.7]} 5. Nxd4 {[%clk 0:02:56.2]}
5... Nc6 {[%clk 0:03:00.3]} 6. Bg5 {[%clk 0:02:55.9]} 6... e6 {[%clk 0:03:00.8]}
7. Qd2 {[%clk 0:02:54.2]} 7... Be7 {[%clk 0:03:01.4]} 8. f4 {[%clk 0:02:53.2]}
8... O-O {[%clk 0:03:00.8]} 9. O-O-O {[%clk 0:02:52.9]} 9... Qb6 {[%clk
0:02:49.5]} 10. Kb1 {[%clk 0:02:49.7]} 10... Rd8 {[%clk 0:02:46.5]} 11. Nxc6
{[%clk 0:02:42.7]} 11... bxc6 {[%clk 0:02:47.4]} 12. h4 {[%clk 0:02:36.2]} 12...
Rb8 {[%clk 0:02:44.5]} 13. b3 {[%clk 0:02:35.5]} 13... Qb4 {[%clk 0:02:38]} 14.
e5 {[%clk 0:02:24]} 14... a5 {[%clk 0:01:19.3]} 15. exf6 {[%clk 0:02:15.5]}
15... gxf6 {[%clk 0:01:20.2]} 16. Bh6 {[%clk 0:02:07.4]} 16... a4 {[%clk
0:01:15.7]} 17. Qd3 {[%clk 0:01:50.9]} 17... Kh8 {[%clk 0:01:14.6]} 18. Qc4
{[%clk 0:01:43.5]} 18... Qa5 {[%clk 0:01:05.2]} 19. Rh3 {[%clk 0:01:38.4]} 19...
d5 {[%clk 0:01:01.7]} 20. Qxa4 {[%clk 0:01:32]} 20... Qb6 {[%clk 0:00:58.2]} 21.
Rg3 {[%clk 0:01:30.5]} 21... Rg8 {[%clk 0:00:55.5]} 22. Rxg8+ {[%clk 0:01:26.3]}
22... Kxg8 {[%clk 0:00:56.4]} 23. Qd4 {[%clk 0:01:25.7]} 23... Qd8 {[%clk
0:00:42.9]} 24. Qe3 {[%clk 0:01:21.5]} 24... Kh8 {[%clk 0:00:41.9]} 25. Bd3
{[%clk 0:01:19.7]} 25... Qg8 {[%clk 0:00:33]} 26. Ne2 {[%clk 0:01:16.7]} 26...
c5 {[%clk 0:00:30.9]} 27. g4 {[%clk 0:01:15.7]} 27... c4 {[%clk 0:00:25.2]} 28.
Bf5 {[%clk 0:01:10]} 28... Bd8 {[%clk 0:00:19.5]} 29. g5 {[%clk 0:01:06.5]}
29... fxg5 {[%clk 0:00:17.8]} 30. hxg5 {[%clk 0:01:03.9]} 30... exf5 {[%clk
0:00:18]} 31. Qd4+ {[%clk 0:01:03.7]} 31... f6 {[%clk 0:00:18]} 32. gxf6 {[%clk
0:01:02.4]} 32... Qf7 {[%clk 0:00:18.4]} 33. Bg7+ {[%clk 0:01:02.5]} 33... Kg8
{[%clk 0:00:18.5]} 34. Rg1 {[%clk 0:01:03.4]} 34... cxb3 {[%clk 0:00:13.8]} 35.
axb3 {[%clk 0:01:02.3]} 35... Bb6 {[%clk 0:00:12.7]} 36. Qe5 {[%clk 0:00:52.6]}
36... Bc7 {[%clk 0:00:08.1]} 37. Qc3 {[%clk 0:00:43.3]} 37... Ba6 {[%clk
0:00:06.2]} 38. Nd4 {[%clk 0:00:42.3]} 38... Bb6 {[%clk 0:00:05.8]} 39. Nxf5
{[%clk 0:00:39.8]} 39... Qh5 {[%clk 0:00:02.9]} 40. Nh6+ {[%clk 0:00:38.2]}
40... Qxh6 {[%clk 0:00:02.2]} 41. Bxh6+ {[%clk 0:00:39.1]} 41... Bxg1 {[%clk
0:00:02.5]} 42. Qg3+ {[%clk 0:00:39.3]} 42... Kf7 {[%clk 0:00:02.6]} 43. Qg7+
{[%clk 0:00:40]} 43... Ke6 {[%clk 0:00:03.2]} 44. Qe7+ {[%clk 0:00:40.4]} 44...
Kf5 {[%clk 0:00:03.6]} 45. f7 {[%clk 0:00:40.2]} 45... Kg4 {[%clk 0:00:02.6]}
46. f8=Q {[%clk 0:00:40.3]} 46... Rxf8 {[%clk 0:00:03.5]} 47. Qxf8 {[%clk
0:00:40.5]} 47... Kf3 {[%clk 0:00:03.7]} 48. Qg7 {[%clk 0:00:40.6]} 48... Be3
{[%clk 0:00:04.6]} 49. f5 {[%clk 0:00:39.6]} 49... Bc5 {[%clk 0:00:05.1]} 50. f6
{[%clk 0:00:39.3]} 1-0

[Event "*** SCC Grand Prix: Titled Tuesday Blitz"]
[Site "Chess.com"]
[Date "2020.09.29"]
[Round "7"]
[White "Radzio1987"]
[Black "Vesper2018"]
[Result "1-0"]
[WhiteElo "2827"]
[BlackElo "2612"]
[TimeControl "180+1"]
[EndTime "11:16:01 PDT"]
[Termination "Radzio1987 won on time"]

1. c4 {[%clk 0:03:00.9]} 1... e5 {[%clk 0:02:58.9]} 2. Nc3 {[%clk 0:03:00.7]}
2... d6 {[%clk 0:02:57.7]} 3. g3 {[%clk 0:03:00.2]} 3... Nc6 {[%clk 0:02:55.2]}
4. Bg2 {[%clk 0:02:59.9]} 4... g6 {[%clk 0:02:55.7]} 5. e3 {[%clk 0:02:55.8]}
5... Bg7 {[%clk 0:02:55.2]} 6. d3 {[%clk 0:02:55.8]} 6... f5 {[%clk 0:02:55.2]}
7. Nge2 {[%clk 0:02:55]} 7... Nf6 {[%clk 0:02:55.5]} 8. b3 {[%clk 0:02:55.2]}
8... O-O {[%clk 0:02:53.5]} 9. Bb2 {[%clk 0:02:55.5]} 9... Be6 {[%clk
0:02:53.6]} 10. Nd5 {[%clk 0:02:55]} 10... Qd7 {[%clk 0:02:49.7]} 11. Qd2 {[%clk
0:02:54.2]} 11... Nd8 {[%clk 0:02:45.9]} 12. O-O {[%clk 0:02:53.5]} 12... Nh5
{[%clk 0:02:42.5]} 13. f4 {[%clk 0:02:48]} 13... c6 {[%clk 0:02:37]} 14. Ndc3
{[%clk 0:02:47.9]} 14... Nf7 {[%clk 0:02:30.4]} 15. d4 {[%clk 0:02:43.6]} 15...
exd4 {[%clk 0:02:18.1]} 16. Nxd4 {[%clk 0:02:37.7]} 16... Nf6 {[%clk 0:02:13]}
17. Rae1 {[%clk 0:02:27.8]} 17... Rfe8 {[%clk 0:02:08.6]} 18. Nxe6 {[%clk
0:02:24.2]} 18... Rxe6 {[%clk 0:02:05.5]} 19. e4 {[%clk 0:02:24]} 19... Rae8
{[%clk 0:01:49]} 20. exf5 {[%clk 0:02:19.9]} 20... Rxe1 {[%clk 0:01:47.6]} 21.
Rxe1 {[%clk 0:02:19.6]} 21... Rxe1+ {[%clk 0:01:45.5]} 22. Qxe1 {[%clk
0:02:20.5]} 22... Qxf5 {[%clk 0:01:45.9]} 23. Qe2 {[%clk 0:02:01.5]} 23... h5
{[%clk 0:01:34.3]} 24. Ne4 {[%clk 0:01:44.7]} 24... Nxe4 {[%clk 0:01:26.2]} 25.
Bxe4 {[%clk 0:01:44.1]} 25... Qe6 {[%clk 0:01:16.4]} 26. Bxg7 {[%clk 0:01:37.7]}
26... Kxg7 {[%clk 0:01:16.4]} 27. Qb2+ {[%clk 0:01:35.9]} 27... Qf6 {[%clk
0:01:15.4]} 28. Qxf6+ {[%clk 0:01:35.6]} 28... Kxf6 {[%clk 0:01:15.4]} 29. Kf2
{[%clk 0:01:36.1]} 29... g5 {[%clk 0:00:59.6]} 30. Ke3 {[%clk 0:01:31.1]} 30...
g4 {[%clk 0:00:49.7]} 31. b4 {[%clk 0:01:30.8]} 31... Nh6 {[%clk 0:00:33]} 32.
b5 {[%clk 0:01:30.1]} 32... Nf5+ {[%clk 0:00:33.2]} 33. Kd3 {[%clk 0:01:30.1]}
33... Ne7 {[%clk 0:00:32.8]} 34. a4 {[%clk 0:01:23.8]} 34... Ke6 {[%clk
0:00:25.9]} 35. Kd4 {[%clk 0:01:13.1]} 35... c5+ {[%clk 0:00:21.5]} 36. Kd3
{[%clk 0:01:12.2]} 36... b6 {[%clk 0:00:22.2]} 37. Bc6 {[%clk 0:01:03.8]} 37...
Kf6 {[%clk 0:00:19.8]} 38. Be8 {[%clk 0:01:02.1]} 38... h4 {[%clk 0:00:13.8]}
39. gxh4 {[%clk 0:00:59.9]} 39... Nf5 {[%clk 0:00:12.5]} 40. h5 {[%clk
0:00:59.9]} 40... Nh4 {[%clk 0:00:09.9]} 41. Bd7 {[%clk 0:00:50.4]} 41... Ng2
{[%clk 0:00:10.1]} 42. Ke4 {[%clk 0:00:49.1]} 42... Ne1 {[%clk 0:00:02.3]} 43.
Bxg4 {[%clk 0:00:48.1]} 43... Nc2 {[%clk 0:00:02.5]} 44. Bd1 {[%clk 0:00:44.6]}
44... Nb4 {[%clk 0:00:02.2]} 45. h4 {[%clk 0:00:39.5]} 45... Na2 {[%clk
0:00:02]} 46. Bb3 {[%clk 0:00:32]} 1-0

[Event "*** SCC Grand Prix: Titled Tuesday Blitz"]
[Site "Chess.com"]
[Date "2020.09.29"]
[Round "7"]
[White "frederiksvane"]
[Black "zajka-molotok"]
[Result "1-0"]
[WhiteElo "2680"]
[BlackElo "2494"]
[TimeControl "180+1"]
[EndTime "11:16:01 PDT"]
[Termination "frederiksvane won on time"]

1. e4 {[%clk 0:03:00.9]} 1... d6 {[%clk 0:02:59.2]} 2. d4 {[%clk 0:03:00.4]}
2... Nf6 {[%clk 0:02:59.5]} 3. Bd3 {[%clk 0:03:00.1]} 3... e5 {[%clk 0:02:58.6]}
4. Nf3 {[%clk 0:03:00.5]} 4... Bg4 {[%clk 0:02:51.2]} 5. c3 {[%clk 0:02:51.9]}
5... Nbd7 {[%clk 0:02:46.7]} 6. O-O {[%clk 0:02:49.8]} 6... Be7 {[%clk
0:02:45.8]} 7. Nbd2 {[%clk 0:02:49.4]} 7... O-O {[%clk 0:02:44.9]} 8. h3 {[%clk
0:02:49.9]} 8... Bh5 {[%clk 0:02:44.2]} 9. Re1 {[%clk 0:02:48]} 9... Re8 {[%clk
0:02:36.8]} 10. Nf1 {[%clk 0:02:47.6]} 10... Bf8 {[%clk 0:02:29.3]} 11. Ng3
{[%clk 0:02:47.7]} 11... Bg6 {[%clk 0:02:29.1]} 12. Nh4 {[%clk 0:02:32.8]} 12...
c6 {[%clk 0:02:05.4]} 13. Nxg6 {[%clk 0:02:32.3]} 13... hxg6 {[%clk 0:02:04.3]}
14. Be3 {[%clk 0:02:32.8]} 14... d5 {[%clk 0:01:46.8]} 15. Qb3 {[%clk
0:02:23.5]} 15... Qc7 {[%clk 0:01:41.6]} 16. Rad1 {[%clk 0:02:17.2]} 16... exd4
{[%clk 0:01:35.9]} 17. Bxd4 {[%clk 0:02:17.4]} 17... Nc5 {[%clk 0:01:30]} 18.
Bxc5 {[%clk 0:02:11.2]} 18... Bxc5 {[%clk 0:01:30.9]} 19. Kf1 {[%clk 0:01:43.1]}
19... dxe4 {[%clk 0:00:45.9]} 20. Bxe4 {[%clk 0:01:37.2]} 20... Nxe4 {[%clk
0:00:38.5]} 21. Nxe4 {[%clk 0:01:36.3]} 21... Qh2 {[%clk 0:00:35.3]} 22. Ng3
{[%clk 0:01:36.4]} 22... Bb6 {[%clk 0:00:23.4]} 23. Rxe8+ {[%clk 0:01:24.4]}
23... Rxe8 {[%clk 0:00:24.3]} 24. Rd7 {[%clk 0:01:22.7]} 24... Re6 {[%clk
0:00:08.4]} 25. Qc2 {[%clk 0:00:34.3]} 25... Rf6 {[%clk 0:00:07.9]} 26. Ne4
{[%clk 0:00:28.9]} 26... Qh1+ {[%clk 0:00:07.4]} 27. Ke2 {[%clk 0:00:28.6]}
27... Re6 {[%clk 0:00:06.5]} 28. Kf3 {[%clk 0:00:25.6]} 28... Qh2 {[%clk
0:00:06]} 29. Qd3 {[%clk 0:00:17.9]} 29... Qe5 {[%clk 0:00:05.5]} 30. g4 {[%clk
0:00:16.8]} 30... Re8 {[%clk 0:00:04]} 31. a4 {[%clk 0:00:08.4]} 31... f5 {[%clk
0:00:03.9]} 32. gxf5 {[%clk 0:00:08.4]} 32... gxf5 {[%clk 0:00:04.8]} 33. Ng3
{[%clk 0:00:07.1]} 33... Rf8 {[%clk 0:00:02.9]} 34. Qc4+ {[%clk 0:00:07.2]}
34... Kh8 {[%clk 0:00:02.7]} 35. Qh4+ {[%clk 0:00:07.3]} 35... Kg8 {[%clk
0:00:02.9]} 36. Qc4+ {[%clk 0:00:07.4]} 36... Kh8 {[%clk 0:00:01.3]} 37. Qf4
{[%clk 0:00:08.1]} 1-0

[Event "*** SCC Grand Prix: Titled Tuesday Blitz"]
[Site "Chess.com"]
[Date "2020.09.29"]
[Round "7"]
[White "Grineva_Marianna"]
[Black "Xeniya2005"]
[Result "0-1"]
[WhiteElo "2253"]
[BlackElo "2378"]
[TimeControl "180+1"]
[EndTime "11:16:01 PDT"]
[Termination "Xeniya2005 won on time"]

1. e4 {[%clk 0:03:00.9]} 1... e6 {[%clk 0:02:59.7]} 2. d4 {[%clk 0:03:00.3]}
2... d5 {[%clk 0:02:59.2]} 3. Nd2 {[%clk 0:03:00.7]} 3... c5 {[%clk 0:02:58.6]}
4. Ngf3 {[%clk 0:02:58.8]} 4... cxd4 {[%clk 0:02:53.4]} 5. exd5 {[%clk
0:02:58.3]} 5... Qxd5 {[%clk 0:02:52.5]} 6. Bc4 {[%clk 0:02:57.1]} 6... Qd6
{[%clk 0:02:51.9]} 7. O-O {[%clk 0:02:55.9]} 7... Nc6 {[%clk 0:02:51.7]} 8. Nb3
{[%clk 0:02:54.6]} 8... Nf6 {[%clk 0:02:50.8]} 9. Nbxd4 {[%clk 0:02:54.4]} 9...
Nxd4 {[%clk 0:02:50.4]} 10. Nxd4 {[%clk 0:02:55.3]} 10... a6 {[%clk 0:02:50.1]}
11. c3 {[%clk 0:02:53.7]} 11... Qc7 {[%clk 0:02:49.7]} 12. Qe2 {[%clk
0:02:49.9]} 12... Be7 {[%clk 0:02:48.6]} 13. Re1 {[%clk 0:02:47]} 13... O-O
{[%clk 0:02:44.6]} 14. Bb3 {[%clk 0:02:34.1]} 14... b5 {[%clk 0:02:43.6]} 15.
Nf5 {[%clk 0:02:25.9]} 15... exf5 {[%clk 0:02:34.9]} 16. Qxe7 {[%clk 0:02:22]}
16... Bd7 {[%clk 0:02:34.3]} 17. Be3 {[%clk 0:02:05.9]} 17... Rae8 {[%clk
0:02:17.5]} 18. Qc5 {[%clk 0:01:56.2]} 18... Qb7 {[%clk 0:02:14.2]} 19. Rad1
{[%clk 0:01:49.4]} 19... Be6 {[%clk 0:02:09.7]} 20. Bd4 {[%clk 0:01:31]} 20...
Bxb3 {[%clk 0:01:41.2]} 21. axb3 {[%clk 0:01:31.9]} 21... Nd5 {[%clk 0:01:33.1]}
22. Be5 {[%clk 0:01:12.6]} 22... Rd8 {[%clk 0:01:19.4]} 23. Bd6 {[%clk
0:01:08.1]} 23... Rfe8 {[%clk 0:01:17.7]} 24. h3 {[%clk 0:00:54.9]} 24... Rxe1+
{[%clk 0:00:59.6]} 25. Rxe1 {[%clk 0:00:53.1]} 25... Nf6 {[%clk 0:00:59.1]} 26.
Bf4 {[%clk 0:00:32.7]} 26... Qd7 {[%clk 0:00:53.5]} 27. b4 {[%clk 0:00:23.4]}
27... h6 {[%clk 0:00:49.9]} 28. Ra1 {[%clk 0:00:18.6]} 28... Qe6 {[%clk
0:00:33.5]} 29. Qe3 {[%clk 0:00:15.3]} 29... Qc6 {[%clk 0:00:31.5]} 30. Qe5
{[%clk 0:00:13.6]} 30... Rd5 {[%clk 0:00:26.4]} 31. Qb8+ {[%clk 0:00:11.2]}
31... Kh7 {[%clk 0:00:26]} 32. Be3 {[%clk 0:00:10.9]} 32... Ne4 {[%clk
0:00:22.6]} 33. Qf8 {[%clk 0:00:08.1]} 33... Qg6 {[%clk 0:00:18.5]} 34. Qe7
{[%clk 0:00:05.8]} 34... Rd6 {[%clk 0:00:15.8]} 35. Bd4 {[%clk 0:00:03]} 35...
Re6 {[%clk 0:00:15.7]} 36. Qf8 {[%clk 0:00:02]} 36... f4 {[%clk 0:00:15.6]} 0-1

[Event "*** SCC Grand Prix: Titled Tuesday Blitz"]
[Site "Chess.com"]
[Date "2020.09.29"]
[Round "7"]
[White "RU_B9"]
[Black "HanSchut"]
[Result "0-1"]
[WhiteElo "1885"]
[BlackElo "2217"]
[TimeControl "180+1"]
[EndTime "11:16:02 PDT"]
[Termination "HanSchut won on time"]

1. c4 {[%clk 0:03:00.9]} 1... Nf6 {[%clk 0:02:56.4]} 2. Nc3 {[%clk 0:03:00]}
2... d5 {[%clk 0:02:56.5]} 3. cxd5 {[%clk 0:02:58.5]} 3... Nxd5 {[%clk
0:02:57.4]} 4. Nf3 {[%clk 0:02:56.9]} 4... c5 {[%clk 0:02:57.5]} 5. e3 {[%clk
0:02:45.5]} 5... Nc6 {[%clk 0:02:52.9]} 6. Bc4 {[%clk 0:02:45.1]} 6... Nb6
{[%clk 0:02:51.3]} 7. Be2 {[%clk 0:02:44.4]} 7... e5 {[%clk 0:02:49.5]} 8. d3
{[%clk 0:02:39.7]} 8... Be7 {[%clk 0:02:47.4]} 9. O-O {[%clk 0:02:39.7]} 9...
O-O {[%clk 0:02:46.9]} 10. a3 {[%clk 0:02:37.8]} 10... Be6 {[%clk 0:02:46.8]}
11. Qc2 {[%clk 0:02:35.8]} 11... Rc8 {[%clk 0:02:46]} 12. b3 {[%clk 0:02:34.9]}
12... f6 {[%clk 0:02:45.6]} 13. Bb2 {[%clk 0:02:34.4]} 13... Nd4 {[%clk
0:02:41.4]} 14. exd4 {[%clk 0:02:22]} 14... cxd4 {[%clk 0:02:42.3]} 15. Qd2
{[%clk 0:02:08.5]} 15... dxc3 {[%clk 0:02:39.7]} 16. Bxc3 {[%clk 0:02:08.8]}
16... Bxb3 {[%clk 0:02:31.8]} 17. Rfb1 {[%clk 0:02:03]} 17... Be6 {[%clk
0:02:25.9]} 18. a4 {[%clk 0:01:51.2]} 18... Qd7 {[%clk 0:02:24.8]} 19. a5 {[%clk
0:01:22.3]} 19... Nd5 {[%clk 0:02:23.4]} 20. Bb2 {[%clk 0:01:17.3]} 20... Rfd8
{[%clk 0:02:14]} 21. Ba3 {[%clk 0:01:14.8]} 21... Nc3 {[%clk 0:01:56.7]} 22. Re1
{[%clk 0:00:46.7]} 22... Bg4 {[%clk 0:01:35.5]} 23. Bxe7 {[%clk 0:00:34.9]}
23... Qxe7 {[%clk 0:01:35.4]} 24. h3 {[%clk 0:00:29.6]} 24... Nxe2+ {[%clk
0:01:33.4]} 25. Qxe2 {[%clk 0:00:30.4]} 25... Bxf3 {[%clk 0:01:24.5]} 26. Qxf3
{[%clk 0:00:29.8]} 26... Qd7 {[%clk 0:01:24.9]} 27. Rab1 {[%clk 0:00:28.4]}
27... Rc7 {[%clk 0:01:20.6]} 28. Rb3 {[%clk 0:00:28.6]} 28... Qa4 {[%clk
0:01:15.6]} 29. Reb1 {[%clk 0:00:27.5]} 29... Qxa5 {[%clk 0:01:03.6]} 30. Rxb7
{[%clk 0:00:26.7]} 30... Rxb7 {[%clk 0:01:01]} 31. Rxb7 {[%clk 0:00:23.3]} 31...
a6 {[%clk 0:00:50.1]} 32. Kh2 {[%clk 0:00:20.4]} 32... Qd5 {[%clk 0:00:40.8]}
33. Qxd5+ {[%clk 0:00:16.4]} 33... Rxd5 {[%clk 0:00:41.3]} 34. Ra7 {[%clk
0:00:16.5]} 34... a5 {[%clk 0:00:41.3]} 35. g3 {[%clk 0:00:14.5]} 35... h5
{[%clk 0:00:40.9]} 36. Kg2 {[%clk 0:00:14.9]} 36... Kh7 {[%clk 0:00:39.3]} 37.
h4 {[%clk 0:00:14.7]} 37... Kg6 {[%clk 0:00:39.3]} 38. Kf1 {[%clk 0:00:15]}
38... Rb5 {[%clk 0:00:36.1]} 39. Ke2 {[%clk 0:00:14.7]} 39... Rb2+ {[%clk
0:00:35.5]} 40. Ke3 {[%clk 0:00:14.3]} 40... Ra2 {[%clk 0:00:36]} 41. f3 {[%clk
0:00:09.8]} 41... a4 {[%clk 0:00:36.1]} 42. g4 {[%clk 0:00:09.3]} 42... hxg4
{[%clk 0:00:33.8]} 43. fxg4 {[%clk 0:00:09.1]} 43... a3 {[%clk 0:00:34.2]} 44.
h5+ {[%clk 0:00:08.8]} 44... Kh6 {[%clk 0:00:33.2]} 45. d4 {[%clk 0:00:05.3]}
45... exd4+ {[%clk 0:00:30.8]} 46. Kxd4 {[%clk 0:00:05.1]} 46... Ra1 {[%clk
0:00:30.9]} 47. Kc3 {[%clk 0:00:03.4]} 47... Rh1 {[%clk 0:00:22.7]} 0-1

[Event "*** SCC Grand Prix: Titled Tuesday Blitz"]
[Site "Chess.com"]
[Date "2020.09.29"]
[Round "7"]
[White "antoszu"]
[Black "Kumi29"]
[Result "0-1"]
[WhiteElo "2589"]
[BlackElo "2428"]
[TimeControl "180+1"]
[EndTime "11:16:03 PDT"]
[Termination "Kumi29 won by resignation"]

1. d4 {[%clk 0:03:00.9]} 1... Nf6 {[%clk 0:02:31.4]} 2. c4 {[%clk 0:02:32]} 2...
e5 {[%clk 0:02:31.2]} 3. dxe5 {[%clk 0:02:31.6]} 3... Ng4 {[%clk 0:02:31.2]} 4.
Bf4 {[%clk 0:02:31.5]} 4... Nc6 {[%clk 0:02:28.6]} 5. Nf3 {[%clk 0:02:31]} 5...
Bb4+ {[%clk 0:02:28.9]} 6. Nbd2 {[%clk 0:02:28.3]} 6... Qe7 {[%clk 0:02:26.5]}
7. e3 {[%clk 0:02:25.8]} 7... Ngxe5 {[%clk 0:02:14.4]} 8. Nxe5 {[%clk
0:02:21.3]} 8... Nxe5 {[%clk 0:02:15.3]} 9. Be2 {[%clk 0:02:20.3]} 9... a5
{[%clk 0:01:56.7]} 10. O-O {[%clk 0:02:15.7]} 10... O-O {[%clk 0:01:43.1]} 11.
Nb3 {[%clk 0:02:05]} 11... a4 {[%clk 0:01:40.5]} 12. Nd4 {[%clk 0:02:01.4]}
12... a3 {[%clk 0:01:29.2]} 13. b3 {[%clk 0:01:57.9]} 13... d6 {[%clk
0:01:21.4]} 14. Rc1 {[%clk 0:01:53.7]} 14... Ng6 {[%clk 0:01:14.3]} 15. Bg3
{[%clk 0:01:53.3]} 15... f5 {[%clk 0:01:10.8]} 16. Bf3 {[%clk 0:01:48.8]} 16...
f4 {[%clk 0:01:04.6]} 17. exf4 {[%clk 0:01:45.3]} 17... Nxf4 {[%clk 0:01:05.5]}
18. Nc2 {[%clk 0:01:38.5]} 18... Bc5 {[%clk 0:00:54.4]} 19. Re1 {[%clk 0:01:29]}
19... Qg5 {[%clk 0:00:51]} 20. Ne3 {[%clk 0:01:29]} 20... c6 {[%clk 0:00:40.5]}
21. Qd2 {[%clk 0:01:20.4]} 21... Bd7 {[%clk 0:00:37.9]} 22. b4 {[%clk 0:01:20]}
22... Ba7 {[%clk 0:00:21]} 23. Qxd6 {[%clk 0:01:17.1]} 23... Rad8 {[%clk
0:00:21]} 24. Bxf4 {[%clk 0:01:02.6]} 24... Rxf4 {[%clk 0:00:17.4]} 25. Rcd1
{[%clk 0:01:00.4]} 25... Rxf3 {[%clk 0:00:16.5]} 26. Qc7 {[%clk 0:00:52.2]}
26... Bb8 {[%clk 0:00:13.1]} 27. Qxb7 {[%clk 0:00:48.9]} 27... Rf7 {[%clk
0:00:09.9]} 28. Qb6 {[%clk 0:00:39.8]} 28... Rdf8 {[%clk 0:00:07.2]} 29. Rd2
{[%clk 0:00:35.1]} 29... Bf4 {[%clk 0:00:05.5]} 30. Qd4 {[%clk 0:00:23.4]} 30...
Bh3 {[%clk 0:00:04.9]} 31. g3 {[%clk 0:00:22.4]} 31... Bxe3 {[%clk 0:00:02.9]}
32. Rxe3 {[%clk 0:00:23.3]} 32... Qf5 {[%clk 0:00:03.1]} 33. f4 {[%clk
0:00:13.5]} 33... Qb1+ {[%clk 0:00:02.9]} 34. Rd1 {[%clk 0:00:14]} 34... Qxa2
{[%clk 0:00:03.3]} 35. Rd2 {[%clk 0:00:13.2]} 35... Qb1+ {[%clk 0:00:03.8]} 36.
Rd1 {[%clk 0:00:13.8]} 36... Qb2 {[%clk 0:00:04.1]} 37. Qe4 {[%clk 0:00:12.1]}
37... Qxb4 {[%clk 0:00:03.7]} 38. Qf3 {[%clk 0:00:10.7]} 38... Re7 {[%clk
0:00:03.3]} 39. Rb3 {[%clk 0:00:09.5]} 39... Re1+ {[%clk 0:00:03]} 0-1

[Event "*** SCC Grand Prix: Titled Tuesday Blitz"]
[Site "Chess.com"]
[Date "2020.09.29"]
[Round "7"]
[White "Oleksandr_Bortnyk"]
[Black "Sethu0025"]
[Result "1-0"]
[WhiteElo "2909"]
[BlackElo "2771"]
[TimeControl "180+1"]
[EndTime "11:16:04 PDT"]
[Termination "Oleksandr_Bortnyk won by resignation"]

1. e4 {[%clk 0:03:00.9]} 1... e5 {[%clk 0:02:59.9]} 2. Bc4 {[%clk 0:02:50.8]}
2... Nf6 {[%clk 0:02:58.2]} 3. d3 {[%clk 0:02:50.7]} 3... Nc6 {[%clk 0:02:58.5]}
4. Nc3 {[%clk 0:02:46.3]} 4... Bb4 {[%clk 0:02:58.3]} 5. Bd2 {[%clk 0:02:36.6]}
5... Na5 {[%clk 0:02:55.4]} 6. Bb3 {[%clk 0:02:36.1]} 6... O-O {[%clk
0:02:52.7]} 7. Nf3 {[%clk 0:02:31.6]} 7... d6 {[%clk 0:02:48.3]} 8. h3 {[%clk
0:02:31.5]} 8... c6 {[%clk 0:02:43.2]} 9. Qe2 {[%clk 0:02:29.5]} 9... b5 {[%clk
0:02:30]} 10. g4 {[%clk 0:02:29.6]} 10... Bc5 {[%clk 0:02:21.3]} 11. g5 {[%clk
0:02:24.7]} 11... Ne8 {[%clk 0:02:16.4]} 12. Be3 {[%clk 0:01:37.9]} 12... Qe7
{[%clk 0:02:02.4]} 13. O-O-O {[%clk 0:01:26.8]} 13... Nxb3+ {[%clk 0:01:58]} 14.
axb3 {[%clk 0:01:27.7]} 14... Bxe3+ {[%clk 0:01:43.3]} 15. Qxe3 {[%clk
0:01:27.8]} 15... a5 {[%clk 0:01:37.9]} 16. d4 {[%clk 0:01:22.4]} 16... a4
{[%clk 0:01:26.2]} 17. b4 {[%clk 0:00:56.7]} 17... Nc7 {[%clk 0:01:14.1]} 18.
dxe5 {[%clk 0:00:53.4]} 18... dxe5 {[%clk 0:01:15]} 19. Qc5 {[%clk 0:00:54]}
19... Qxc5 {[%clk 0:01:02.7]} 20. bxc5 {[%clk 0:00:54.9]} 20... Re8 {[%clk
0:01:00]} 21. Rd6 {[%clk 0:00:51.4]} 21... Bb7 {[%clk 0:00:58.3]} 22. Rd7 {[%clk
0:00:48.5]} 22... Rac8 {[%clk 0:00:57.8]} 23. Na2 {[%clk 0:00:47.5]} 23... Ba8
{[%clk 0:00:49.2]} 24. Nb4 {[%clk 0:00:47.6]} 24... Ne6 {[%clk 0:00:46.5]} 25.
Nd3 {[%clk 0:00:46.1]} 25... Rcd8 {[%clk 0:00:38.7]} 26. Ra7 {[%clk 0:00:46.2]}
26... Kf8 {[%clk 0:00:30.6]} 27. Rg1 {[%clk 0:00:40.5]} 27... Re7 {[%clk
0:00:30.1]} 28. Rxe7 {[%clk 0:00:38.5]} 28... Kxe7 {[%clk 0:00:31]} 29. Nfxe5
{[%clk 0:00:39.4]} 29... Bb7 {[%clk 0:00:30.7]} 30. f4 {[%clk 0:00:38.5]} 30...
Rd4 {[%clk 0:00:29.5]} 31. f5 {[%clk 0:00:37.5]} 31... Nc7 {[%clk 0:00:27.9]}
32. Re1 {[%clk 0:00:32.4]} 32... Ne8 {[%clk 0:00:20.8]} 33. c3 {[%clk
0:00:31.2]} 33... Rd8 {[%clk 0:00:20.9]} 34. Nb4 {[%clk 0:00:31.7]} 34... Rc8
{[%clk 0:00:20.1]} 35. Rd1 {[%clk 0:00:32.1]} 35... f6 {[%clk 0:00:20.4]} 36.
Rd7+ {[%clk 0:00:31.8]} 36... Kf8 {[%clk 0:00:19.8]} 37. gxf6 {[%clk 0:00:18.2]}
37... gxf6 {[%clk 0:00:17.1]} 38. Rxb7 {[%clk 0:00:17]} 38... fxe5 {[%clk
0:00:17.2]} 39. Rxh7 {[%clk 0:00:17.9]} 39... Kg8 {[%clk 0:00:17.5]} 40. Rh6
{[%clk 0:00:17.5]} 40... Kf7 {[%clk 0:00:17.2]} 41. Rxc6 {[%clk 0:00:17.7]}
41... Rd8 {[%clk 0:00:17]} 42. Re6 {[%clk 0:00:18]} 42... Nf6 {[%clk 0:00:16.7]}
43. Rxe5 {[%clk 0:00:18.5]} 43... Rg8 {[%clk 0:00:16.8]} 44. c6 {[%clk
0:00:17.8]} 44... Rg1+ {[%clk 0:00:16.9]} 45. Kc2 {[%clk 0:00:18.4]} 45... Rg2+
{[%clk 0:00:17.8]} 46. Kb1 {[%clk 0:00:18.9]} 46... Rg1+ {[%clk 0:00:17.8]} 47.
Ka2 {[%clk 0:00:18.4]} 47... Ne8 {[%clk 0:00:18.7]} 48. Rxb5 {[%clk 0:00:15.8]}
1-0